Workbook

Sheet WA Natural Gas - Sched 192
D4: GEN SERVICE | E4: LRG GEN SVC | F4: INTERRUPTIBLE | G4: TRANSPORT | H4: TRANSPORT
A5: Source | C5: TOTAL | D5: SCHEDULE 101&102 | E5: SCH. 111,112&116 | F5: SCH. 131&132 | G5: SCHEDULE 146 | H5: SCHEDULE 148
A7: Forecast | B7: Total Annual Therms | C7: =SUM(D7:H7) -> 231835507.8 | D7: =SUM('Revenue By Month'!I4:T4) -> 136079643.5 | E7: =SUM('Revenue By Month'!I5:T5) -> 61164730.75 | F7: =SUM('Revenue By Month'!I6:T6) -> 2519394.576 | G7: =SUM('Revenue By Month'!I7:T7) -> 32071739
B9: Present LIRAP Rates | D9: 0.02929 | E9: 0.02456 | F9: 0.02156 | G9: 0.00118
B11: Present Gross LIRAP Revenue | C11: =SUM(D11:G11) -> 5580141.343 | D11: =D7*D9 -> 3985772.757 | E11: =E7*E9 -> 1502205.787 | F11: =F7*F9 -> 54318.14706 | G11: =G7*G9 -> 37844.65202
A13: UG-220054 | B13: Base Revenue | C13: =SUM(D13:G13) -> 121156640.5 | D13: ='Base Revenue'!F14*1000 -> 95552177.95 | E13: ='Base Revenue'!F15*1000 -> 21347859.18 | F13: ='Base Revenue'!F16*1000+619409 -> 859088.85 | G13: =('Base Revenue'!F17*1000-291000) -> 3397514.546
B15: Percentage of Current Base Volumetric Revenue | C15: =SUM(D15:F15) -> 1 | D15: =D13/($C$13-$G$13) -> 0.811420577 | E15: =E13/($C$13-$G$13) -> 0.1812841171 | F15: =F13/($C$13-$G$13) -> 0.007295305929 | G15: =G13/$C$13 -> 0.02804233042
B17: Revenue Requirement | C17: 12404414.72
B18: Less Sch 146 | C18: =G21 -> 33975.14546
B19: Net to collect from other schedules | C19: =C17-C18 -> 12370439.57
B21: Revenue Spread Based on Current Allocation | C21: =SUM(D21:G21) -> 12404414.72 | D21: =$C$19*D15 -> 10037629.22 | E21: =$C$19*E15 -> 2242564.216 | F21: 90246.14117 | G21: =0.01*('Base Revenue'!F17*1000-291000) -> 33975.14546
B23: LIRAP Revenue Increase <Decrease> | C23: =SUM(D23:G23) -> 6824273.377 | D23: =D21-D11 -> 6051856.46 | E23: =E21-E11 -> 740358.4289 | F23: 35927.99411 | G23: =G21-G11 -> -3869.50656
B25: Proposed LIRAP Rates | D25: =D21/D7 -> 0.07376290062 | E25: =E21/E7 -> 0.03666433562 | F25: =F21/F7 -> 0.03582056659 | G25: =G21/G7 -> 0.001059348402
B27: Percentage Increase <Decrease> | D27: =D21/D11-1 -> 1.518364651 | E27: =E21/E11-1 -> 0.4928475414 | F27: 0.6614362981 | G27: =G21/G11-1 -> -0.1022471169
B29: Present Billed Revenue | C29: =SUM(D29:H29) -> 182207000 | D29: 136764000 | E29: 40128000 | F29: 536000 | G29: 3256000 | H29: 1523000
B31: Proposed Billed Revenue | C31: =SUM(D31:H31) -> 189031273.4 | D31: =D29+D23 -> 142815856.5 | E31: =E29+E23 -> 40868358.43 | F31: 571927.9941 | G31: =G29+G23 -> 3252130.493 | H31: 1523000
B33: Overall Billed Percentage Increase <Decrease> | C33: =C31/C29-1 -> 0.03745340946 | D33: =D31/D29-1 -> 0.04425036165 | E33: =E31/E29-1 -> 0.01844992097 | F33: =F31/F29-1 -> 0.06702983977 | G33: =G31/G29-1 -> -0.001188423391 | H33: 0
B36: Present LIRAP Revenue as a Percentage of Billed Revenue | C36: =C11/C29 -> 0.03062528521
A39: UG-220054 | B39: Revenue Conversion Factor | C39: ='Rev Conv Factor'!E22 -> 0.956282
B41: Proposed Net LIRAP Revenue | C41: =SUM(D41:H41) -> 11862118.52 | D41: =D21*$C$39 -> 9598804.143 | E41: =E21*$C$39 -> 2144523.794 | F41: 86300.76038 | G41: 32489.82005 | H41: 0
B43: Proposed LIRAP Revenue as a % of Billed Revenue | C43: =C21/C29 -> 0.06807869467
C45: Present | D45: Proposed | E45: $ Inc/(Dec) | F45: % Inc/(Dec)
B46: Average Monthly Bill @ 67 Therms | C46: =C52+(C53*C51) -> 98.99257 | D46: =C52+(C53*(C51+(ROUND(D25,5)-D9))) -> 101.97206 | E46: =D46-C46 -> 2.97949 | F46: =E46/C46 -> 0.03009811746
B49: Change in Schedule 192 Rate | D49: =D25-D9 -> 0.04447290062
B51: Present Rate (first 70 therms) | C51: 1.33571
B52: Basic Charge | C52: 9.5
B53: Average Customer Usage | C53: 67

Sheet LIRAP Balance
B1: 2023 | C1: 2023 | D1: 2023 | E1: 2023 | F1: 2023 | G1: 2023 | H1: 2023 | I1: 2023 | J1: 2024 | K1: 2024 | L1: 2024 | M1: 2024 | N1: 2024 | O1: 2024 | P1: 2024 | Q1: 2024 | R1: 2024 | S1: 2024 | T1: 2024 | U1: 2024 | V1: 2025 | W1: 2025 | X1: 2025 | Y1: 2025 | Z1: 2025 | AA1: 2025 | AB1: 2025 | AC1: 2025 | AD1: 2025 | AE1: 2025
B2: End May | C2: End June | D2: End July | E2: End August | F2: End September | G2: End October | H2: End November | I2: End December | J2: End January | K2: End February | L2: End March | M2: End April | N2: End May | O2: End June | P2: End July | Q2: End August | R2: End September | S2: End October | T2: End November | U2: End December | V2: End January | W2: End February | X2: End March | Y2: End April | Z2: End May | AA2: End June | AB2: End July | AC2: End August | AD2: End September | AE2: End October
A3: Expected elec tariff rider revenue | C3: =-'Revenue By Month'!D35 -> -123557.3041 | D3: =-'Revenue By Month'!E35 -> -115198.8088 | E3: =-'Revenue By Month'!F35 -> -111178.1058 | F3: =-'Revenue By Month'!G35 -> -161796.5055 | G3: =-'Revenue By Month'!H35 -> -394388.7658 | H3: =-'Revenue By Month'!I35 -> -1479065.744 | I3: =-'Revenue By Month'!J35 -> -2146917.526 | J3: =-'Revenue By Month'!K35 -> -1948188.199 | K3: =-'Revenue By Month'!L35 -> -1708186.431 | L3: =-'Revenue By Month'!M35 -> -1326155.186 | M3: =-'Revenue By Month'!N35 -> -847036.1646 | N3: =-'Revenue By Month'!O35 -> -466838.702 | O3: =-'Revenue By Month'!P35 -> -307485.4653 | P3: =-'Revenue By Month'!Q35 -> -231941.6518 | Q3: =-'Revenue By Month'!R35 -> -244443.5002 | R3: =-'Revenue By Month'!S35 -> -338651.6502 | S3: =-'Revenue By Month'!T35 -> -817208.2958 | T3: =-'Revenue By Month'!U35 -> -1484010.484 | U3: =-'Revenue By Month'!V35 -> -2161546.368 | V3: =-'Revenue By Month'!W35 -> -1961780.472 | W3: =-'Revenue By Month'!X35 -> -1717127.986 | X3: =-'Revenue By Month'!Y35 -> -1328217.906 | Y3: =-'Revenue By Month'!Z35 -> -858568.4262 | Z3: =-'Revenue By Month'!AA35 -> -465590.5017 | AA3: =-'Revenue By Month'!AB35 -> -305539.9423 | AB3: =-'Revenue By Month'!AC35 -> -236321.4241 | AC3: =-'Revenue By Month'!AD35 -> -238988.996 | AD3: =-'Revenue By Month'!AE35 -> -328713.0469 | AE3: =-'Revenue By Month'!AF35 -> -807527.6661
A4: Expected LIRAP Expense | C4: ='LIRAP Expense Summary'!$B$47 -> 221875 | D4: ='LIRAP Expense Summary'!$B$47 -> 221875 | E4: ='LIRAP Expense Summary'!$B$47 -> 221875 | F4: ='LIRAP Expense Summary'!$B$47 -> 221875 | G4: ='LIRAP Expense Summary'!$D$34/12 -> 873475.5601 | H4: ='LIRAP Expense Summary'!$D$34/12 -> 873475.5601 | I4: ='LIRAP Expense Summary'!$D$34/12 -> 873475.5601 | J4: ='LIRAP Expense Summary'!$D$34/12 -> 873475.5601 | K4: ='LIRAP Expense Summary'!$D$34/12 -> 873475.5601 | L4: ='LIRAP Expense Summary'!$D$34/12 -> 873475.5601 | M4: ='LIRAP Expense Summary'!$D$34/12 -> 873475.5601 | N4: ='LIRAP Expense Summary'!$D$34/12 -> 873475.5601 | O4: ='LIRAP Expense Summary'!$D$34/12 -> 873475.5601 | P4: ='LIRAP Expense Summary'!$D$34/12 -> 873475.5601 | Q4: ='LIRAP Expense Summary'!$D$34/12 -> 873475.5601 | R4: ='LIRAP Expense Summary'!$D$34/12 -> 873475.5601 | S4: ='LIRAP Expense Summary'!$E$34/12 -> 1327791.178 | T4: ='LIRAP Expense Summary'!$E$34/12 -> 1327791.178 | U4: ='LIRAP Expense Summary'!$E$34/12 -> 1327791.178 | V4: ='LIRAP Expense Summary'!$E$34/12 -> 1327791.178 | W4: ='LIRAP Expense Summary'!$E$34/12 -> 1327791.178 | X4: ='LIRAP Expense Summary'!$E$34/12 -> 1327791.178 | Y4: ='LIRAP Expense Summary'!$E$34/12 -> 1327791.178 | Z4: ='LIRAP Expense Summary'!$E$34/12 -> 1327791.178 | AA4: ='LIRAP Expense Summary'!$E$34/12 -> 1327791.178 | AB4: ='LIRAP Expense Summary'!$E$34/12 -> 1327791.178 | AC4: ='LIRAP Expense Summary'!$E$34/12 -> 1327791.178 | AD4: ='LIRAP Expense Summary'!$E$34/12 -> 1327791.178 | AE4: ='LIRAP Expense Summary'!$E$34/12 -> 1327791.178
A5: Net change in balance | C5: =C3+C4 -> 98317.6959 | D5: =D3+D4 -> 106676.1912 | E5: =E3+E4 -> 110696.8942 | F5: 60078.49451 | G5: 479086.7943 | H5: -605590.1842 | I5: -1273441.966 | J5: -1074712.639 | K5: -834710.8711 | L5: -452679.6261 | M5: 26439.39543 | N5: 406636.858 | O5: 565990.0948 | P5: 641533.9082 | Q5: 629032.0599 | R5: 534823.9099 | S5: =S3+S4 -> 510582.8824 | T5: -156219.3061 | U5: -833755.1902 | V5: -633989.2938 | W5: -389336.8077 | X5: -426.7278649 | Y5: 469222.752 | Z5: 862200.6764 | AA5: 1022251.236 | AB5: 1091469.754 | AC5: 1088802.182 | AD5: 999078.1312 | AE5: =AE3+AE4 -> 520263.512
A6: Accounting Adjustment
A7: Elec Tariff rider balance | B7: -3968320.81 | C7: =C5+C6+B7 -> -3870003.114 | D7: =D5+D6+C7 -> -3763326.923 | E7: =E5+E6+D7 -> -3652630.029 | F7: =F5+F6+E7 -> -3592551.534 | G7: =G5+G6+F7 -> -3113464.74 | H7: -3719054.924 | I7: -4992496.89 | J7: -6067209.529 | K7: -6901920.401 | L7: -7354600.027 | M7: -7328160.631 | N7: -6921523.773 | O7: -6355533.678 | P7: -5713999.77 | Q7: -5084967.71 | R7: =Q7+R5+R6 -> -4550143.8 | S7: =R7+S5+S6 -> -4039560.918 | T7: =S7+T5+T6 -> -4195780.224 | U7: -5029535.414 | V7: -5663524.708 | W7: -6052861.516 | X7: -6053288.244 | Y7: -5584065.492 | Z7: -4721864.815 | AA7: -3699613.579 | AB7: -2608143.825 | AC7: -1519341.643 | AD7: -520263.512 | AE7: =AD7+AE5+AE6 -> -1.047737896e-09
A11: Forecasted End of October 2023 Balance | B11: =G7 -> -3113464.74 | C11: Overfunded "Rebate"
A12: November 2023 - October 2025 Expenditure Budget | B12: =SUM(H4:AE4) -> 26869516.48
A13: November 2023 - October 2025 Forecasted Revenue | B13: =SUM(H3:AE3) -> -23756051.74
B14: =SUM(C6:R6) -> 0
A15: Total Projected DSM Balance October 2025 | B15: =B11+B12+B14+B13 -> 0 | C15: (Overfunded)/Underfunded

Sheet LIRAP Expense Summary
A1: Washington LIRAP Spending Forecast
A2: Direct Service | D2: 23-24 PY (Existing Budget) | E2: 24-25 PY | F2: 25-26 PY | G2: 26-27 PY | H2: Allocations | K2: Arrearage Programs | L2: Oregon Actuals (Oct 22-May 23) | O2: Washington Forecast
A3: Customers | C3: 129500 | D3: =D4*$C$3 -> 47915 | E3: =E4*$C$3 -> 73815 | F3: =F4*$C$3 -> 86765 | G3: =G4*$C$3 -> 93240 | L3: Participants | M3: Avg. Benefit | O3: Participants | P3: Avg. Benefit | Q3: Total Benefit
A4: Saturation Forecast | B4: Benefit Per Customer Year One | C4: 1 | D4: 0.37 | E4: 0.57 | F4: 0.67 | G4: 0.72 | K4: AFP | L4: 1086 | M4: 496 | O4: =O6*O7 -> 3080 | P4: =P6*M7 -> 711.9617225 | Q4: =O4*P4 -> 2192842.105
A5: LIRAP Share Elec | B5: =D5/$D$3 -> 14.18973727 | C5: =M25*L15 -> 1837570.976 | D5: =C5*$D$4 -> 679901.2612 | E5: =C5*$E$4 -> 1047415.457 | F5: =C5*$F$4 -> 1231172.554 | G5: =C5*$G$4 -> 1323051.103 | H5: =SUM(D5:D12)/D24 -> 0.8280584015 | K5: AMP | L5: 491 | M5: 98 | O5: =O6*O8 -> 1400 | P5: =P6*M8 -> 140.6698565 | Q5: =O5*P5 -> 196937.799
A6: LIRAP Share Gas | B6: =D6/$D$3 -> 8.333655221 | C6: =M25*L16 -> 1079208.351 | D6: 399307.0899 | E6: 615148.7602 | F6: 723069.5953 | G6: 777030.0128 | K6: Avg Past Due | L6: 9629 | M6: 209 | O6: 28000 | P6: 300
A7: BD Elec | B7: 272.9049942 | C7: 35341196.75 | D7: 13076242.8 | E7: 20144482.15 | F7: 23678601.83 | G7: 25445661.66 | K7: AFP % | L7: =L4/L6 -> 0.1127842974 | M7: =M4/M6 -> 2.373205742 | O7: 0.11 | P7: =P4/P6 -> 2.373205742
A8: BD Gas | B8: 160.2775363 | C8: 20755940.95 | D8: 7679698.152 | E8: 11830886.34 | F8: 13906480.44 | G8: 14944277.48 | K8: AMP % | L8: =L5/L6 -> 0.05099179562 | M8: =M5/M6 -> 0.4688995215 | O8: 0.05 | P8: =P5/P6 -> 0.4688995215
A9: AFP Elec | B9: 10.66788051 | C9: =L15*Q4 -> 1381490.526 | D9: 511151.4947 | E9: 787449.6 | F9: 925598.6526 | G9: 994673.1789
A10: AFP Gas | B10: 6.265263158 | C10: =L16*Q4 -> 811351.5789 | D10: 300200.0842 | E10: 462470.4 | F10: 543605.5579 | G10: 584173.1368
A11: AMP Elec | B11: 0.9580757791 | C11: =L15*Q5 -> 124070.8134 | D11: 45906.20096 | E11: 70720.36364 | F11: 83127.44498 | G11: 89330.98565 | K11: Average Annual Bill | L11: Electric Only | M11: Dual Fuel | N11: Gas Only | O11: Overall
A12: AMP Gas | B12: =D12/$D$3 -> 0.5626794258 | C12: =L16*Q5 -> 72866.98565 | D12: 26960.78469 | E12: 41534.18182 | F12: 48820.88038 | G12: 52464.22967 | K12: Electric | L12: 1248 | M12: 1032 | N12: 0 | O12: 1128
A13: Other DS Elec | B13: =D13/$D$3 -> 22.40405698 | C13: =B13*C3 -> 2901325.378 | D13: 1073490.39 | E13: =B13*E3 -> 1653755.466 | F13: =B13*F3 -> 1943888.004 | G13: =B13*G3 -> 2088954.272 | H13: =SUM(D13:D14)/D24 -> 0.06210439506 | K13: Gas | L13: 0 | M13: 948 | N13: 888 | O13: 864
A14: Other DS Gas | B14: =D14/$D$3 -> 13.15793822 | C14: =B14*C3 -> 1703953 | D14: 630462.61 | E14: =B14*E3 -> 971253.21 | F14: =B14*F3 -> 1141648.51 | G14: =B14*G3 -> 1226846.16
A15: Direct Service Total | B15: 509.7218171 | C15: =SUM(C5:C14) -> 66008975.32 | D15: =SUM(D5:D14) -> 24423320.87 | E15: =SUM(E5:E14) -> 37625115.93 | F15: =SUM(F5:F14) -> 44226013.46 | G15: =SUM(G5:G14) -> 47526462.23 | H15: =SUM(H5,H13) -> 0.8901627966 | K15: Percent Electric | L15: 0.63
K16: Percent Gas | L16: 0.37
A17: Admin/Con-Ed/Outreach | C17: 1 | D17: 0.37 | E17: 0.57 | F17: 0.67 | G17: 0.72
A18: Agency Admin Elec | B18: =D18/$D$3 -> 31.14296149 | C18: =$C$3*B18 -> 4033013.514 | D18: 1492215 | E18: =$E$3*B18 -> 2298817.703 | F18: =$F$3*B18 -> 2702119.054 | G18: =$G$3*B18 -> 2903769.73 | H18: =SUM(D18:D19)/D24 -> 0.08755313823 | K18: LIRAP Share | L18: WA Actuals (Oct 2018-Sept 22)
A19: Agency Admin Gas | B19: =D19/$D$3 -> 18.99140144 | C19: =$C$3*B19 -> 2459386.486 | D19: 909973 | E19: =$E$3*B19 -> 1401850.297 | F19: =$F$3*B19 -> 1647788.946 | G19: =$G$3*B19 -> 1770758.27 | L19: Participants | M19: Total Benefit | N19: Average Benefit
A20: Agency Con-Ed Elec | B20: 7.926056558 | C20: 1026424.324 | D20: 379777 | E20: =$E$3*B20 -> 585061.8649 | F20: =$F$3*B20 -> 687704.2973 | G20: =$G$3*B20 -> 739025.5135 | H20: =SUM(D20:D21)/D24 -> 0.02228406521 | K20: 18-19 PY | L20: 10211 | M20: 2957944.14 | N20: =M20/L20 -> 289.6821212
A21: Agency Con-Ed Gas | B21: 4.834164667 | C21: 626024.3243 | D21: 231629 | E21: =$E$3*B21 -> 356833.8649 | F21: 419436.2973 | G21: 450737.5135 | K21: 19-20 PY | L21: 11996 | M21: 3528478.38 | N21: =M21/L21 -> 294.137911
A22: Admin/Con-Ed/Outreach Total | B22: =SUM(B18:B21) -> 62.89458416 | C22: 8144848.649 | D22: 3013594 | E22: 4642563.73 | F22: 5457048.595 | G22: 5864291.027 | H22: =D22/D24 -> 0.1098372034 | K22: 20-21 PY | L22: 7337 | M22: 2306538.34 | N22: 314.3707701
K23: 21-22 | L23: 8978 | M23: 2874156.45 | N23: 320.1332646
A24: LIRAP Total | B24: =B15+B22 -> 572.6164013 | C24: =SUM(C15,C22) -> 74153823.96 | D24: =SUM(D15,D22) -> 27436914.87 | E24: =SUM(E15,E22) -> 42267679.66 | F24: =SUM(F15,F22) -> 49683062.06 | G24: =SUM(G15,G22) -> 53390753.25 | H24: =D24/D29 -> 0.9710695961 | K24: Total | L24: =SUM(L20:L23) -> 38522 | M24: =SUM(M20:M23) -> 11667117.31 | N24: 302.8689401
A25: Avista Outreach Elec | B25: =D25/$D$3 -> 9.203798393 | C25: 63000 | D25: 441000 | E25: 315000 | F25: 157500 | G25: 157500 | H25: =SUM(D26,D25)/D29 -> 0.02477496907 | K25: Avg | L25: =AVERAGE(L20:L23) -> 9630.5 | M25: =AVERAGE(M20:M23) -> 2916779.327 | N25: =M25/L25 -> 302.8689401
A26: Avista Outreach Gas | B26: =D26/D3 -> 5.405405405 | C26: 37000 | D26: 259000 | E26: 185000 | F26: 92500 | G26: 92500
A27: Avista Con-Ed Electric | B27: =D27/D3 -> 1.522132944 | C27: =$C$3*B27 -> 197116.2162 | D27: 72933 | E27: =$E$3*B27 -> 112356.2432 | F27: =$F$3*B27 -> 132067.8649 | G27: =$G$3*B27 -> 141923.6757 | H27: =SUM(D27:D28)/D29 -> 0.004155434777
A28: Avista Con-Ed Gas | B28: =D28/D3 -> 0.9282270688 | C28: =$C$3*B28 -> 120205.4054 | D28: 44476 | E28: =$E$3*B28 -> 68517.08108 | F28: =$F$3*B28 -> 80537.62162 | G28: =$G$3*B28 -> 86547.89189
A29: LIRAP Grand Total | B29: =D29/D3 -> 589.6759651 | C29: =SUM(C24:C28) -> 74571145.59 | D29: =SUM(D24:D28) -> 28254323.87 | E29: =SUM(E24:E28) -> 42948552.98 | F29: =SUM(F24:F28) -> 50145667.54 | G29: =SUM(G24:G28) -> 53869224.82 | H29: =SUM(H24:H27) -> 1
A30: Percent of Increase from Previous PY | D30: =D24/13716004 -> 2.000357748 | E30: =E24/D24 -> 1.540540541 | F30: =F24/E24 -> 1.175438596 | G30: =G24/F24 -> 1.074626866
A31: LIRAP Outreach % of LIRAP Total | D31: =SUM(D25:D26)/D29 -> 0.02477496907 | E31: =SUM(E25:E26)/E29 -> 0.01164183576 | F31: 0.00498547556 | G31: 0.004640868712
C33: Annual Electric (Oct - Sep) | D33: =D5+D7+D9+D11+D13+D18+D20+D25+D27 -> 17772617.15 | E33: 27015058.85 | F33: 31541779.7 | G33: 33883890.12
C34: Annual Natural Gas (Oct - Sep) | D34: 10481706.72 | E34: 15933494.14 | F34: 18603887.85 | G34: 19985334.7
D35: =D29-D33-D34 -> 0 | E35: =E29-E33-E34 -> 0 | F35: =F29-F33-F34 -> 0 | G35: =G29-G33-G34 -> 0
D37: =D33-9900000 -> 7872617.146 | E37: =E33-D33 -> 9242441.701 | F37: =F33-E33 -> 4526720.85 | G37: =G33-F33 -> 2342110.425
A38: Estimated Total LIRAP Costs June-Sept 2023
A39: Direct Service Electric | B39: 882000
A40: Direct Service Gas | B40: 518000
A41: Admin Electric | B41: 465000
A42: Admin Gas | B42: 283500
A43: Con-Ed Electric | B43: 141000
A44: Con-Ed Gas | B44: 86000
A45: Total | B45: 2375500
A47: Monthly Gas | B47: =(B40+B42+B44)/4 -> 221875
A48: Monthly Electric | B48: =(B39+B41+B43)/4 -> 372000

Sheet Revenue By Month
A3: Forecasted Usage | D3: 2023-06-30 | E3: =EOMONTH(D3,1) -> 2023-07-31 | F3: =EOMONTH(E3,1) -> 2023-08-31 | G3: 2023-09-30 | H3: 2023-10-31 | I3: 2023-11-30 | J3: 2023-12-31 | K3: 2024-01-31 | L3: 2024-02-29 | M3: 2024-03-31 | N3: 2024-04-30 | O3: 2024-05-31 | P3: 2024-06-30 | Q3: 2024-07-31 | R3: 2024-08-31 | S3: 2024-09-30 | T3: 2024-10-31 | U3: 2024-11-30 | V3: 2024-12-31 | W3: 2025-01-31 | X3: 2025-02-28 | Y3: 2025-03-31 | Z3: 2025-04-30 | AA3: 2025-05-31 | AB3: 2025-06-30 | AC3: 2025-07-31 | AD3: 2025-08-31 | AE3: 2025-09-30 | AF3: 2025-10-31 | AH3: 2022-2023 | AI3: 2023-2024
B4: Small Service Schedule 101 | D4: =D38 -> 2764101.32 | E4: 2481004.316 | F4: 2294937.431 | G4: 3580778.661 | H4: 9536348.054 | I4: 16896724.59 | J4: 25318761.38 | K4: 22936252.24 | L4: 20105498.73 | M4: 15455535.2 | N4: 9694274.396 | O4: 5183904.468 | P4: 3240671.915 | Q4: 2340441.111 | R4: 2489737.256 | S4: 3519545.252 | T4: 8898296.924 | U4: 16978003.42 | V4: 25540559.18 | W4: 23133721.34 | X4: 20236790.39 | Y4: 15488448.23 | Z4: 9859704.617 | AA4: 5172571.915 | AB4: 3218684.041 | AC4: 2406610.12 | AD4: =AD38 -> 2414744.463 | AE4: 3380515.041 | AF4: 8750149.329 | AH4: =SUM(F4:Q4) -> 136584128.2 | AI4: =SUM(R4:AC4) -> 136942672.7
B5: Large Service Schedule 111 | D5: =D39+D40 -> 1767905.764 | E5: 1749252.021 | F5: 1811059.298 | G5: 2410383.673 | H5: 5097277.038 | I5: 7774200.731 | J5: 9866698.715 | K5: 9002635.065 | L5: 7900560.024 | M5: 6407192.021 | N5: 4392730.333 | O5: 2692002.078 | P5: 2078905.036 | Q5: 1745092.451 | R5: 1807011.088 | S5: 2398983.706 | T5: 5098719.498 | U5: 7750797.317 | V5: 9839437.175 | W5: 8992230.1 | X5: 7891540.622 | Y5: 6399075.297 | Z5: 4388737.569 | AA5: 2679862.754 | AB5: 2068584.371 | AC5: 1737584.849 | AD5: =AD39+AD40 -> 1802347.717 | AE5: 2395561.258 | AF5: 5118879.485 | AH5: =SUM(F5:Q5) -> 61178736.46 | AI5: =SUM(R5:AC5) -> 61052564.34
B6: Interrupt Service Schedule 131 | D6: =D42 -> 90117.99879 | E6: 101889.0532 | F6: 99072.32022 | G6: 120887.6639 | H6: 249609.2691 | I6: 347671.4314 | J6: 347632.5896 | K6: 329887.8425 | L6: 276791.7525 | M6: 239018.4967 | N6: 179545.2488 | O6: 120676.2709 | P6: 105778.5552 | Q6: 101513.6592 | R6: 99031.20604 | S6: 120809.837 | T6: 251037.6863 | U6: 347386.904 | V6: 347694.449 | W6: 329844.5252 | X6: 276693.1709 | Y6: 238783.7174 | Z6: 179344.5427 | AA6: 120125.9496 | AB6: 105367.8242 | AC6: 101323.3431 | AD6: =AD42 -> 99099.96109 | AE6: 121230.9248 | AF6: 252717.0198 | AH6: 2518085.1 | AI6: 2517443.155
B7: Transport Service Schedule 146 | D7: 2442959 | E7: 2235879 | F7: 2056324 | G7: 2124517 | H7: 2142848 | I7: 2683302 | J7: 3090346 | K7: 3318946 | L7: 3450658 | M7: 3077573 | N7: 3015119 | O7: 2622375 | P7: 2351056 | Q7: 2160373 | R7: 2046710 | S7: 2111844 | T7: 2143437 | U7: 2724551 | V7: 3028501 | W7: 3348035 | X7: 3450753 | Y7: 3110861 | Z7: 3024980 | AA7: 2618081 | AB7: 2332683 | AC7: 2142684 | AD7: =AD43 -> 2043252 | AE7: 2086080 | AF7: 2148434
B8: Special Contract Transport | D8: 3624525 | E8: 3447121 | F8: 3274936 | G8: 3394097 | H8: 3472303 | I8: 4012777 | J8: 4389174 | K8: 4792623 | L8: 4825009 | M8: 4352849 | N8: 4317680 | O8: 3939169 | P8: 3656651 | Q8: 3480246 | R8: 3310149 | S8: 3431054 | T8: 3507041 | U8: 4047280 | V8: 4423023 | W8: 4826686 | X8: 4859504 | Y8: 4387169 | Z8: 4352013 | AA8: 3973337 | AB8: 3690791 | AC8: 3514441 | AD8: =AD44 -> 3344335 | AE8: 3465261 | AF8: 3541224
A9: Total Forecasted Usage | D9: =SUM(D4:D8) -> 10689609.08 | E9: 10015145.39 | F9: 9536329.049 | G9: 11630664 | H9: 20498385.36 | I9: 31714675.75 | J9: 43012612.68 | K9: 40380344.15 | L9: 36558517.5 | M9: 29532167.72 | N9: 21599348.98 | O9: 14558126.82 | P9: 11433062.51 | Q9: 9827666.221 | R9: 9752638.55 | S9: 11582236.79 | T9: 19898532.11 | U9: 31848018.64 | V9: 43179214.81 | W9: 40630516.96 | X9: 36715281.18 | Y9: 29624337.25 | Z9: 21804779.73 | AA9: 14563978.62 | AB9: 11416110.24 | AC9: 9902643.312 | AD9: =SUM(AD4:AD8) -> 9703779.141 | AE9: 11448648.22 | AF9: 19811403.83 | AH9: =SUM(AH4:AH8) -> 200280949.7 | AI9: =SUM(AI4:AI8) -> 200512680.2 | AJ9: =(AI9-AH9)/AH9 -> 0.001157026909
AH10: ='[6]WA Gas - Sched 191'!C7 -> 200280949.7
A12: LIRAP Rates
B13: Small Service Schedule 101 | D13: ='WA Natural Gas - Sched 192'!D9 -> 0.02929 | E13: =D13 -> 0.02929 | F13: =E13 -> 0.02929 | G13: 0.02929 | H13: 0.02929 | I13: ='WA Natural Gas - Sched 192'!D25 -> 0.07376290062 | J13: =I13 -> 0.07376290062 | K13: =J13 -> 0.07376290062 | L13: 0.07376290062 | M13: 0.07376290062 | N13: 0.07376290062 | O13: 0.07376290062 | P13: 0.07376290062 | Q13: 0.07376290062 | R13: 0.07376290062 | S13: 0.07376290062 | T13: 0.07376290062 | U13: 0.07376290062 | V13: 0.07376290062 | W13: 0.07376290062 | X13: 0.07376290062 | Y13: 0.07376290062 | Z13: 0.07376290062 | AA13: 0.07376290062 | AB13: 0.07376290062 | AC13: 0.07376290062 | AD13: 0.07376290062 | AE13: 0.07376290062 | AF13: 0.07376290062
B14: Large Service Schedule 111 | D14: ='WA Natural Gas - Sched 192'!E9 -> 0.02456 | E14: =D14 -> 0.02456 | F14: =E14 -> 0.02456 | G14: 0.02456 | H14: 0.02456 | I14: ='WA Natural Gas - Sched 192'!E25 -> 0.03666433562 | J14: =I14 -> 0.03666433562 | K14: 0.03666433562 | L14: 0.03666433562 | M14: 0.03666433562 | N14: 0.03666433562 | O14: 0.03666433562 | P14: 0.03666433562 | Q14: 0.03666433562 | R14: 0.03666433562 | S14: 0.03666433562 | T14: 0.03666433562 | U14: 0.03666433562 | V14: 0.03666433562 | W14: 0.03666433562 | X14: 0.03666433562 | Y14: 0.03666433562 | Z14: 0.03666433562 | AA14: 0.03666433562 | AB14: 0.03666433562 | AC14: 0.03666433562 | AD14: 0.03666433562 | AE14: 0.03666433562 | AF14: 0.03666433562
B15: Interrupt Service Schedule 131 | D15: ='WA Natural Gas - Sched 192'!F9 -> 0.02156 | E15: =D15 -> 0.02156 | F15: =E15 -> 0.02156 | G15: 0.02156 | H15: 0.02156 | I15: ='WA Natural Gas - Sched 192'!F25 -> 0.03582056659 | J15: 0.03582056659 | K15: 0.03582056659 | L15: 0.03582056659 | M15: 0.03582056659 | N15: 0.03582056659 | O15: 0.03582056659 | P15: 0.03582056659 | Q15: 0.03582056659 | R15: 0.03582056659 | S15: 0.03582056659 | T15: 0.03582056659 | U15: 0.03582056659 | V15: 0.03582056659 | W15: 0.03582056659 | X15: 0.03582056659 | Y15: 0.03582056659 | Z15: 0.03582056659 | AA15: 0.03582056659 | AB15: 0.03582056659 | AC15: 0.03582056659 | AD15: 0.03582056659 | AE15: 0.03582056659 | AF15: 0.03582056659
B16: Transport Service Schedule 146 | D16: ='WA Natural Gas - Sched 192'!G9 -> 0.00118 | E16: =D16 -> 0.00118 | F16: =E16 -> 0.00118 | G16: 0.00118 | H16: 0.00118 | I16: ='WA Natural Gas - Sched 192'!G25 -> 0.001059348402 | J16: 0.001059348402 | K16: 0.001059348402 | L16: 0.001059348402 | M16: 0.001059348402 | N16: 0.001059348402 | O16: 0.001059348402 | P16: 0.001059348402 | Q16: 0.001059348402 | R16: 0.001059348402 | S16: 0.001059348402 | T16: 0.001059348402 | U16: 0.001059348402 | V16: 0.001059348402 | W16: 0.001059348402 | X16: 0.001059348402 | Y16: 0.001059348402 | Z16: 0.001059348402 | AA16: 0.001059348402 | AB16: 0.001059348402 | AC16: 0.001059348402 | AD16: 0.001059348402 | AE16: 0.001059348402 | AF16: 0.001059348402
B17: Special Contract Transport
B18: Total
A21: Gross LIRAP Revenue | D21: =D3 -> 2023-06-30 | E21: 2023-07-31 | F21: 2023-08-31 | G21: 2023-09-30 | H21: 2023-10-31 | I21: 2023-11-30 | J21: 2023-12-31 | K21: 2024-01-31 | L21: 2024-02-29 | M21: 2024-03-31 | N21: 2024-04-30 | O21: 2024-05-31 | P21: 2024-06-30 | Q21: 2024-07-31 | R21: 2024-08-31 | S21: 2024-09-30 | T21: 2024-10-31 | U21: 2024-11-30 | V21: 2024-12-31 | W21: 2025-01-31 | X21: 2025-02-28 | Y21: 2025-03-31 | Z21: 2025-04-30 | AA21: 2025-05-31 | AB21: 2025-06-30 | AC21: 2025-07-31 | AD21: =AD3 -> 2025-08-31 | AE21: 2025-09-30 | AF21: 2025-10-31
B22: Small Service Schedule 101 | D22: =D4*D13 -> 80960.52767 | E22: 72668.61641 | F22: 67218.71735 | G22: 104881.007 | H22: 279319.6345 | I22: 1246351.416 | J22: 1867585.28 | K22: 1691844.495 | L22: 1483039.905 | M22: 1140045.107 | N22: 715077.7989 | O22: 382379.8301 | P22: 239041.3604 | Q22: 172637.7251 | R22: 183650.2418 | S22: 259611.8667 | T22: 656364.1917 | U22: 1252346.779 | V22: 1883945.729 | W22: 1706410.388 | X22: 1492724.358 | Y22: 1142472.868 | Z22: 727280.4119 | AA22: 381543.9082 | AB22: 237419.471 | AC22: 177518.5431 | AD22: =AD4*AD13 -> 178118.5558 | AE22: 249356.595 | AF22: 645436.3954
B23: Large Service Schedule 111 | D23: 43419.76556 | E23: 42961.62964 | F23: 44479.61636 | G23: 59199.023 | H23: 125189.124 | I23: 285035.9047 | J23: 361755.9531 | K23: 330075.6335 | L23: 289668.7843 | M23: 234915.4386 | N23: 161056.5392 | O23: 98700.46767 | P23: 76221.67196 | Q23: 63982.65529 | R23: 66252.861 | S23: 87957.14372 | T23: 186941.1629 | U23: 284177.8341 | V23: 360756.4269 | W23: 329694.1423 | X23: 289338.0939 | Y23: 234617.8443 | Z23: 160910.1472 | AA23: 98255.38742 | AB23: 75843.27162 | AC23: 63707.39405 | AD23: =AD5*AD14 -> 66081.8816 | AE23: 87831.66197 | AF23: 187680.3154
B24: Interrupt Service Schedule 131 | D24: 1942.944054 | E24: 2196.727986 | F24: 2135.999224 | G24: 2606.338035 | H24: 5381.575841 | I24: 12453.78766 | J24: 12452.39632 | K24: 11816.76943 | L24: 9914.837403 | M24: 8561.777976 | N24: 6431.41254 | O24: 4322.692398 | P24: 3789.04778 | Q24: 3636.276788 | R24: 3547.35391 | S24: 4327.476809 | T24: 8992.312158 | U24: 12443.59573 | V24: 12454.61216 | W24: 11815.21778 | X24: 9911.306154 | Y24: 8553.36805 | Z24: 6424.223134 | AA24: 4302.979577 | AB24: 3774.335162 | AC24: 3629.45956 | AD24: =AD6*AD15 -> 3549.816755 | AE24: 4342.560414 | AF24: 9052.466835
B25: Transport Service Schedule 146 | D25: 2882.69162 | E25: 2638.33722 | F25: 2426.46232 | G25: 2506.93006 | H25: 2528.56064 | I25: 2842.551686 | J25: 3273.753097 | K25: 3515.920142 | L25: 3655.449038 | M25: 3260.22204 | N25: 3194.061495 | O25: 2778.008766 | P25: 2490.587417 | Q25: 2288.587685 | R25: 2168.178968 | S25: 2237.178567 | T25: 2270.646561 | U25: 2886.248748 | V25: 3208.237695 | W25: 3546.735527 | X25: 3655.549676 | Y25: 3295.485629 | Z25: 3204.507729 | AA25: 2773.459924 | AB25: 2471.124008 | AC25: 2269.848871 | AD25: 2164.515741 | AE25: 2209.885515 | AF25: 2275.940125
B26: Special Contract Transport
B27: Total | D27: =SUM(D22:D26) -> 129205.9289 | E27: =SUM(E22:E26) -> 120465.3113 | F27: 116260.7953 | G27: 169193.2981 | H27: 412418.895 | I27: 1546683.661 | J27: 2245067.382 | K27: 2037252.818 | L27: 1786278.975 | M27: 1386782.546 | N27: 885759.8121 | O27: 488180.999 | P27: 321542.6676 | Q27: 242545.2449 | R27: 255618.6357 | S27: 354133.6658 | T27: 854568.3133 | U27: 1551854.457 | V27: 2260365.006 | W27: 2051466.484 | X27: 1795629.308 | Y27: 1388939.566 | Z27: 897819.2899 | AA27: 486875.7351 | AB27: 319508.2018 | AC27: 247125.2456 | AD27: =SUM(AD22:AD26) -> 249914.7699 | AE27: 343740.7029 | AF27: 844445.1177
A29: Net LIRAP Revenue | C29: ='Rev Conv Factor'!E22 -> 0.956282 | D29: =D21 -> 2023-06-30 | E29: 2023-07-31 | F29: 2023-08-31 | G29: 2023-09-30 | H29: 2023-10-31 | I29: 2023-11-30 | J29: 2023-12-31 | K29: 2024-01-31 | L29: 2024-02-29 | M29: 2024-03-31 | N29: 2024-04-30 | O29: 2024-05-31 | P29: 2024-06-30 | Q29: 2024-07-31 | R29: 2024-08-31 | S29: 2024-09-30 | T29: 2024-10-31 | U29: 2024-11-30 | V29: 2024-12-31 | W29: 2025-01-31 | X29: 2025-02-28 | Y29: 2025-03-31 | Z29: 2025-04-30 | AA29: 2025-05-31 | AB29: 2025-06-30 | AC29: 2025-07-31 | AD29: =AD21 -> 2025-08-31 | AE29: 2025-09-30 | AF29: 2025-10-31
B30: Small Service Schedule 101 | D30: =D22*$C$29 -> 77421.09532 | E30: 69491.68984 | F30: 64280.04947 | G30: 100295.8191 | H30: 267108.3387 | I30: 1191863.425 | J30: 1785938.186 | K30: 1617880.437 | L30: 1418204.366 | M30: 1090204.615 | N30: 683816.0277 | O30: 365662.9487 | P30: =P22*$C$29 -> 228590.9502 | Q30: =Q22*$C$29 -> 165090.349 | R30: =R22*$C$29 -> 175621.4205 | S30: 248262.1551 | T30: 627669.262 | U30: 1197596.682 | V30: 1801583.389 | W30: 1631809.539 | X30: 1427465.435 | Y30: 1092526.239 | Z30: 695485.1668 | AA30: 364863.5716 | AB30: 227039.9666 | AC30: 169757.7875 | AD30: =AD22*$C$29 -> 170331.5688 | AE30: 238455.2234 | AF30: 617219.207
B31: Large Service Schedule 111 | D31: =D23*$C$29 -> 41521.54025 | E31: 41083.43311 | F31: 42535.05649 | G31: 56610.96012 | H31: 119716.1059 | I31: 272574.7051 | J31: 345940.7064 | K31: 315645.3869 | L31: 277005.0444 | M31: 224645.4055 | N31: 154015.4694 | O31: =O23*$C$29 -> 94385.48062 | P31: 72889.41291 | Q31: 61185.46157 | R31: 63356.41843 | S31: 84111.83331 | T31: 178768.4691 | U31: 271754.1476 | V31: 344984.8774 | W31: 315280.5738 | X31: 276688.8111 | Y31: 224360.8214 | Z31: 153875.4773 | AA31: 93959.85839 | AB31: 72527.55547 | AC31: 60922.2342 | AD31: =AD23*$C$29 -> 63192.9139 | AE31: 83991.83737 | AF31: 179475.3074
B32: Interrupt Service Schedule 131 | D32: 1858.002426 | E32: 2100.691432 | F32: 2042.61761 | G32: 2492.394148 | H32: 5146.304109 | I32: 11909.33297 | J32: 11908.00246 | K32: 11300.1639 | L32: 9481.380541 | M32: 8187.474166 | N32: 6150.244047 | O32: =O24*$C$29 -> 4133.712932 | P32: 3623.39819 | Q32: 3477.306039 | R32: 3392.270692 | S32: 4138.288178 | T32: 8599.186255 | U32: 11899.58661 | V32: 11910.12143 | W32: 11298.68009 | X32: 9478.003672 | Y32: 8179.431906 | Z32: 6143.368947 | AA32: 4114.861916 | AB32: 3609.328777 | AC32: 3470.786847 | AD32: =AD24*$C$29 -> 3394.625866 | AE32: 4152.712358 | AF32: 8656.71109
B33: Transport Service Schedule 146 | D33: 2756.666108 | E33: 2522.994393 | F33: 2320.38224 | G33: 2397.332092 | H33: 2418.017026 | I33: 2718.281011 | J33: 3130.631159 | K33: 3362.211145 | L33: 3495.640117 | M33: 3117.691653 | N33: 3054.423514 | O33: =O25*$C$29 -> 2656.559779 | P33: 2381.703916 | Q33: 2188.535209 | R33: 2073.39052 | S33: 2139.373594 | T33: 2171.378434 | U33: 2760.067725 | V33: 3067.979959 | W33: 3391.679343 | X33: 3495.736356 | Y33: 3151.413589 | Z33: 3064.41306 | AA33: 2652.209803 | AB33: 2363.091409 | AC33: 2170.615618 | AD33: 2069.887442 | AE33: 2113.27374 | AF33: 2176.440574
B34: Special Contract Transport
B35: Total | D35: =SUM(D30:D34) -> 123557.3041 | E35: =SUM(E30:E34) -> 115198.8088 | F35: 111178.1058 | G35: 161796.5055 | H35: 394388.7658 | I35: 1479065.744 | J35: 2146917.526 | K35: 1948188.199 | L35: 1708186.431 | M35: 1326155.186 | N35: 847036.1646 | O35: 466838.702 | P35: 307485.4653 | Q35: 231941.6518 | R35: 244443.5002 | S35: 338651.6502 | T35: 817208.2958 | U35: 1484010.484 | V35: 2161546.368 | W35: 1961780.472 | X35: 1717127.986 | Y35: 1328217.906 | Z35: 858568.4262 | AA35: 465590.5017 | AB35: 305539.9423 | AC35: 236321.4241 | AD35: =SUM(AD30:AD34) -> 238988.996 | AE35: 328713.0469 | AF35: 807527.6661 | AH35: =SUM(D35:Q35) -> 11367934.56 | AI35: =AH35+SUM('[6]DSM Balance'!G3:Y3) -> 1193110.475
B38: WA101 | D38: 2764101.32 | E38: 2481004.316 | F38: 2294937.431 | G38: 3580778.661 | H38: 9536348.054 | I38: 16896724.59 | J38: 25318761.38 | K38: 22936252.24 | L38: 20105498.73 | M38: 15455535.2 | N38: 9694274.396 | O38: 5183904.468 | P38: 3240671.915 | Q38: 2340441.111 | R38: 2489737.256 | S38: 3519545.252 | T38: 8898296.924 | U38: 16978003.42 | V38: 25540559.18 | W38: 23133721.34 | X38: 20236790.39 | Y38: 15488448.23 | Z38: 9859704.617 | AA38: 5172571.915 | AB38: 3218684.041 | AC38: 2406610.12 | AD38: 2414744.463 | AE38: 3380515.041 | AF38: 8750149.329
B39: WA111 | D39: 1746298.855 | E39: 1726984.207 | F39: 1788424.433 | G39: 2383581.073 | H39: 5048195.059 | I39: 7705945.566 | J39: 9797127.952 | K39: 8938966.399 | L39: 7838869.978 | M39: 6354425.097 | N39: 4350960.967 | O39: 2662882.137 | P39: 2053543.314 | Q39: 1722905.728 | R39: 1784385.616 | S39: 2372198.361 | T39: 5049356.642 | U39: 7682598.011 | V39: 9769854.032 | W39: 8928569.794 | X39: 7829872.547 | Y39: 6346360.204 | Z39: 4347014.895 | AA39: 2650875.609 | AB39: 2043321.127 | AC39: 1715439.721 | AD39: 1779706.537 | AE39: 2368682.552 | AF39: 5069186.413
B40: WA112 | D40: 21606.90911 | E40: 22267.8137 | F40: 22634.86519 | G40: 26802.60008 | H40: 49081.97805 | I40: 68255.16453 | J40: 69570.76351 | K40: 63668.66682 | L40: 61690.04603 | M40: 52766.9237 | N40: 41769.36552 | O40: 29119.94087 | P40: 25361.72195 | Q40: 22186.7224 | R40: 22625.47191 | S40: 26785.34468 | T40: 49362.85521 | U40: 68199.30585 | V40: 69583.14327 | W40: 63660.30654 | X40: 61668.07463 | Y40: 52715.09265 | Z40: 41722.6733 | AA40: 28987.14489 | AB40: 25263.24408 | AC40: 22145.12713 | AD40: 22641.18024 | AE40: 26878.70613 | AF40: 49693.07135
B41: WA121 -Discontinued | D41: 0 | E41: 0 | F41: 0 | G41: 0 | H41: 0 | I41: 0 | J41: 0 | K41: 0 | L41: 0 | M41: 0 | N41: 0 | O41: 0 | P41: 0 | Q41: 0 | R41: 0 | S41: 0 | T41: 0 | U41: 0 | V41: 0 | W41: 0 | X41: 0 | Y41: 0 | Z41: 0 | AA41: 0 | AB41: 0 | AC41: 0 | AD41: 0 | AE41: 0 | AF41: 0
B42: WA132 | D42: 90117.99879 | E42: 101889.0532 | F42: 99072.32022 | G42: 120887.6639 | H42: 249609.2691 | I42: 347671.4314 | J42: 347632.5896 | K42: 329887.8425 | L42: 276791.7525 | M42: 239018.4967 | N42: 179545.2488 | O42: 120676.2709 | P42: 105778.5552 | Q42: 101513.6592 | R42: 99031.20604 | S42: 120809.837 | T42: 251037.6863 | U42: 347386.904 | V42: 347694.449 | W42: 329844.5252 | X42: 276693.1709 | Y42: 238783.7174 | Z42: 179344.5427 | AA42: 120125.9496 | AB42: 105367.8242 | AC42: 101323.3431 | AD42: 99099.96109 | AE42: 121230.9248 | AF42: 252717.0198
B43: WA146 | D43: 2442959 | E43: 2235879 | F43: 2056324 | G43: 2124517 | H43: 2142848 | I43: 2683302 | J43: 3090346 | K43: 3318946 | L43: 3450658 | M43: 3077573 | N43: 3015119 | O43: 2622375 | P43: 2351056 | Q43: 2160373 | R43: 2046710 | S43: 2111844 | T43: 2143437 | U43: 2724551 | V43: 3028501 | W43: 3348035 | X43: 3450753 | Y43: 3110861 | Z43: 3024980 | AA43: 2618081 | AB43: 2332683 | AC43: 2142684 | AD43: 2043252 | AE43: 2086080 | AF43: 2148434
B44: WA148 | D44: 3624525 | E44: 3447121 | F44: 3274936 | G44: 3394097 | H44: 3472303 | I44: 4012777 | J44: 4389174 | K44: 4792623 | L44: 4825009 | M44: 4352849 | N44: 4317680 | O44: 3939169 | P44: 3656651 | Q44: 3480246 | R44: 3310149 | S44: 3431054 | T44: 3507041 | U44: 4047280 | V44: 4423023 | W44: 4826686 | X44: 4859504 | Y44: 4387169 | Z44: 4352013 | AA44: 3973337 | AB44: 3690791 | AC44: 3514441 | AD44: 3344335 | AE44: 3465261 | AF44: 3541224
D47: =SUM(D38:D44)-D9 -> 0 | E47: 0 | F47: 0 | G47: 0 | H47: 0 | I47: 0 | J47: 0 | K47: 0 | L47: 0 | M47: 0 | N47: 0 | O47: 0 | P47: 0 | Q47: 0 | R47: 0 | S47: 0 | T47: 0 | U47: 0 | V47: 0 | W47: 0 | X47: 0 | Y47: 0 | Z47: 0 | AA47: 0 | AB47: 0 | AC47: 0 | AD47: =SUM(AD38:AD44)-AD9 -> 0 | AE47: 0 | AF47: 0

Sheet Rev Conv Factor
A1: AVISTA UTILITIES
A2: REVENUE CONVERSION FACTOR
A3: WASHINGTON NATURAL GAS
A4: TWELVE MONTHS ENDED SEPTEMBER 30, 2021
A6: Line
A7: No. | C7: Description | E7: Factor
A9: 1 | C9: Revenues | E9: 1
C11: Expense:
A12: 2 | C12: Uncollectibles | E12: 0.003326
A14: 3 | C14: Commission Fees | E14: 0.002
A16: 4 | C16: Washington Excise Tax | E16: 0.038392
A18: 5 | C18: Franchise Fees | E18: 0
A20: 6 | C20: Total Expense | E20: =E12+E14+E16+E18 -> 0.043718
A22: 7 | C22: Net Operating Income Before FIT | E22: =E9-E20 -> 0.956282
A24: 8 | C24: Federal Income Tax @ 21% | E24: 0.20081922
A26: 9 | C26: REVENUE CONVERSION FACTOR | E26: =E22-E24 -> 0.75546278
A29: Source: UG-220054

Sheet Base Revenue
A1: AVISTA UTILITIES
A2: WASHINGTON NATURAL GAS
A3: PROPOSED INCREASE BY SERVICE SCHEDULE
A4: 12 MONTHS ENDED SEPTEMBER 30, 2021
A5: (000s of Dollars)
D8: Base Tariff | F8: Base Tariff | G8: Base | H8: Total Billed | L8: Percent
D9: Distribution Revenue | E9: Final | F9: Distribution Revenue | G9: Tariff | H9: Revenue | I9: Final | J9: Sch. 192 | K9: Sch. 178 | L9: Increase
A10: Line | B10: Type of | C10: Schedule | D10: Under Present | E10: General | F10: Under Proposed | G10: Percent | H10: at Present | I10: General | J10: LIRAP | K10: Tax Credit | L10: on Billed
A11: No. | B11: Service | C11: Number | D11: Rates | E11: Increase | F11: Rates | G11: Increase | H11: Rates (1) | I11: Increase | J11: Increase | K11: Decrease | L11: Revenue
B12: (a) | C12: (b) | D12: (c) | E12: (d) | F12: (e) | G12: (f) | H12: (g) | I12: (h) | K12: (I) | L12: (j)
A14: 1 | B14: General Service | C14: 101/102 | D14: 89621.22559 | E14: 5930.95236 | F14: 95552.17795 | G14: 0.06617798765 | H14: 139159.2974 | I14: 5930.95236 | J14: 0 | K14: -4927.049177 | L14: 0.007214057572
A15: 2 | B15: Large General Service | C15: 111/112/116 | D15: 20022.85926 | E15: 1324.99992 | F15: 21347.85918 | G15: 0.06617436115 | H15: 43152.72195 | I15: 1324.99992 | J15: 0 | K15: -1100.784012 | L15: 0.005195869421
A16: 3 | B16: Interruptible Service | C16: 131/132 | D16: 224.70907 | E16: 14.77078 | F16: 239.67985 | G16: 0.06573290522 | H16: 527.50024 | I16: 14.77078 | J16: 0 | K16: -12.35368777 | L16: 0.004582163284
A17: 4 | B17: Transportation Service | C17: 146 | D17: 3459.652709 | E17: 228.8618375 | F17: 3688.514546 | G17: 0.0661516796 | H17: 3224.989898 | I17: 228.8618375 | J17: 0 | K17: -190.1991288 | L17: 0.01198847436
A18: 5 | B18: Special Contracts | C18: 148 | D18: 1530.90434 | E18: 0 | F18: 1530.90434 | G18: 0 | H18: 1530.90434 | I18: 0 | J18: 0 | K18: 0 | L18: 0
A19: 6 | B19: Total | D19: 114859.551 | E19: 7499.784897 | F19: 122359.5359 | G19: 0.06529526569 | H19: 187595.8139 | I19: 7499.584897 | J19: 0 | K19: -6230.386005 | L19: 0.006765603489
D20: 0 | F20: 0 | K20: 0
A21: (1) Includes Schedule 150 (Purchase Gas Cost Adjustment), Schedule 155 (Gas Rate Adjustment), Schedule 175 (Decoupling), Schedule 176 (Tax Credit)
A22: Schedule 191 (DSM Adjustment), and Schedule 192 (LIRAP Adjustment).
